bitfinex/quotes_SOLUSD_20220109
["timestamp","ask_amount","ask_price","bid_price","bid_amount"]
[1641767171440,30.98899451,142.45,142.38,0.25]
[1641767171837,30.98899451,142.45,142.38,3.0]
[1641767172039,30.98899451,142.45,142.38,3.25]
[1641767172239,30.98899451,142.45,142.39,1.99253036]
[1641767172441,3.0,142.44,142.39,2.24253036]
[1641767173040,30.98899451,142.45,142.39,2.24253036]
[1641767174438,30.98899451,142.45,142.4,0.26]
[1641767175640,30.98899451,142.45,142.39,2.24253036]
[1641767176442,30.98899451,142.45,142.4,0.26]
[1641767176842,30.98899451,142.45,142.39,2.24253036]
[1641767177044,30.98899451,142.45,142.39,1.99253036]
[1641767177292,41.52179451,142.45,142.39,2.24253036]
[1641767177646,0.26,142.44,142.39,2.24253036]
[1641767178044,41.52179451,142.45,142.39,2.24253036]
[1641767178243,30.98899451,142.45,142.39,2.24253036]
[1641767178447,30.98899451,142.45,142.4,0.26]
[1641767178944,30.98899451,142.45,142.39,2.24253036]
[1641767181548,30.98899451,142.45,142.36,3.98581032]
[1641767181850,11.954,142.44,142.36,3.98581032]
[1641767182050,12.204,142.44,142.36,3.98581032]
[1641767182252,3.0,142.43,142.36,3.98581032]
[1641767182453,22.58418324,142.41,142.31,3.98581032]
[1641767182656,23.06262653,142.38,142.31,3.98581032]
[1641767182852,23.06262653,142.38,142.32,3.0]
[1641767183053,23.06262653,142.38,142.32,3.25]
[1641767183455,23.06262653,142.38,142.32,0.25]
[1641767184254,23.06262653,142.38,142.31,3.51]
[1641767184455,23.06262653,142.38,142.31,0.51]
[1641767184654,23.06262653,142.38,142.32,3.0]
[1641767184857,23.06262653,142.38,142.31,0.26]
[1641767185461,23.06262653,142.38,142.3,0.26]
[1641767185860,23.06262653,142.38,142.3,4.24581032]
[1641767186060,23.06262653,142.38,142.3,4.49581032]
[1641767186560,23.06262653,142.38,142.3,0.51]
[1641767186961,23.06262653,142.38,142.3,0.26]
[1641767187361,23.4954,142.37,142.31,3.94215388]
[1641767187561,23.4954,142.37,142.32,0.26]
[1641767188563,23.4954,142.37,142.31,0.25]
[1641767188764,23.4954,142.37,142.29,18.03261032]
[1641767189364,23.4954,142.37,142.3,3.94333334]
[1641767189565,23.4954,142.37,142.31,0.26]
[1641767190167,23.4954,142.37,142.3,0.51]
[1641767190866,23.4954,142.37,142.3,0.26]
[1641767192892,23.06262653,142.38,142.3,12.57672586]
[1641767193095,23.06262653,142.38,142.31,3.0]
[1641767193493,23.06262653,142.38,142.32,0.26]
[1641767195096,73.1834,142.4,142.32,0.26]
[1641767195397,83.1234,142.4,142.32,0.26]
[1641767195596,9.94,142.4,142.32,0.26]
[1641767196196,27.30282306,142.39,142.32,0.26]
[1641767198299,51.77082306,142.39,142.32,0.26]
[1641767198701,51.77082306,142.39,142.31,3.25]
[1641767199000,0.26,142.38,142.31,3.25]
[1641767199401,0.26,142.38,142.32,3.93954443]
[1641767199601,0.26,142.38,142.33,3.0]
[1641767200002,0.26,142.38,142.33,3.25]
[1641767200707,0.26,142.38,142.33,0.25]
[1641767200905,0.26,142.38,142.32,3.25]
[1641767204739,51.77082306,142.39,142.32,3.25]
[1641767205240,51.77082306,142.39,142.33,0.26]
[1641767205639,51.77082306,142.39,142.33,3.26]
[1641767205941,51.77082306,142.39,142.33,0.51]
[1641767206341,51.77082306,142.39,142.33,0.25]
[1641767207041,51.77082306,142.39,142.32,0.26]
[1641767213550,51.77082306,142.39,142.33,3.98272419]
[1641767214052,51.77082306,142.39,142.33,4.23272419]
[1641767214949,51.77082306,142.39,142.33,0.25]
[1641767215150,51.77082306,142.39,142.32,4.24581032]
[1641767215350,0.26,142.38,142.33,3.0]
[1641767216550,0.26,142.38,142.33,0.25]
[1641767216949,0.26,142.38,142.32,0.26]
[1641767217151,51.77082306,142.39,142.32,0.26]
[1641767220857,51.77082306,142.39,142.33,3.98317572]
[1641767221453,51.77082306,142.39,142.32,0.26]
[1641767224859,51.77082306,142.39,142.31,7.23581032]
[1641767224860,9.94,142.38,142.31,3.98581032]
[1641767225061,15.206,142.38,142.28,5.95044209]
[1641767225357,124.24,142.37,142.28,5.95044209]
[1641767225557,29.4979098,142.35,142.19,115.2144602]
[1641767225759,11.696,142.34,142.19,115.2144602]
[1641767225960,12.206,142.34,142.2,0.07]
[1641767226359,24.48297017,142.32,142.2,3.07]
[1641767226562,10.2,142.31,142.2,3.07]
[1641767226758,28.6109448,142.29,142.2,13.8638]
[1641767226958,0.26,142.28,142.2,17.84003937]
[1641767227360,0.26,142.28,142.21,3.97623937]
[1641767227561,0.26,142.28,142.22,0.26]
[1641767227758,0.26,142.28,142.21,4.22623937]
[1641767228561,0.26,142.28,142.21,0.25]
[1641767228761,0.26,142.28,142.2,13.7938]
[1641767228962,0.26,142.28,142.21,0.26]
[1641767229162,0.26,142.28,142.2,13.5438]
[1641767229562,0.26,142.28,142.2,3.0]
[1641767229991,9.94,142.27,142.19,3.0]
[1641767230192,30.81497668,142.26,142.19,3.0]
[1641767230391,31.07497668,142.26,142.19,3.0]
[1641767230591,9.94,142.25,142.19,3.0]
[1641767230791,9.94,142.25,142.17,3.0]
[1641767230990,0.26,142.24,142.14,13.6186]
[1641767231189,9.94,142.23,142.14,3.07]
[1641767231391,27.97806916,142.22,142.14,3.07]
[1641767231591,28.23806916,142.22,142.14,0.07]
[1641767231791,28.23806916,142.22,142.15,2.0]
[1641767231991,28.23806916,142.22,142.14,0.26]
[1641767232797,38.78796916,142.22,142.12,10.5502]
[1641767232991,38.78796916,142.22,142.12,10.8002]
[1641767233192,38.78796916,142.22,142.12,10.5502]
[1641767233394,38.78796916,142.22,142.13,3.0]
[1641767234496,38.78796916,142.22,142.13,3.25]
[1641767236098,38.52796916,142.22,142.13,3.25]
[1641767237298,48.46796916,142.22,142.13,3.25]
[1641767237498,0.26,142.21,142.13,3.25]
[1641767237799,10.8112,142.21,142.13,3.25]
[1641767239598,10.5512,142.21,142.13,3.25]
[1641767239798,10.5512,142.21,142.14,0.26]
[1641767241800,37.91806916,142.22,142.14,10.8093]
[1641767242102,0.26,142.21,142.15,0.26]
[1641767243603,37.91806916,142.22,142.15,10.8087]
[1641767243802,9.94,142.22,142.15,10.8087]
[1641767244002,9.94,142.22,142.15,11.0587]
[1641767246105,9.94,142.22,142.16,3.0]
[1641767246503,9.94,142.22,142.17,10.8073]
[1641767246905,9.94,142.22,142.17,11.0573]
[1641767254014,24.6626,142.25,142.18,3.0]
[1641767254214,24.6626,142.25,142.19,10.5454]
[1641767254415,24.6626,142.25,142.19,11.0554]
[1641767255619,40.3729072,142.26,142.19,11.0554]
[1641767256844,50.9198072,142.26,142.19,0.26]
[1641767257245,50.9198072,142.26,142.18,0.26]
[1641767257845,50.9198072,142.26,142.16,3.26]
[1641767258245,50.9198072,142.26,142.17,3.97980424]
[1641767258446,50.9198072,142.26,142.18,0.26]
[1641767258846,50.9198072,142.26,142.18,10.8065]
[1641767259059,0.26,142.25,142.18,11.0565]
[1641767259446,50.9198072,142.26,142.18,11.0565]
[1641767262549,0.26,142.25,142.18,11.0565]
[1641767262750,0.26,142.25,142.18,0.51]
[1641767262950,23.6757,142.25,142.17,0.26]
[1641767263451,23.4157,142.25,142.17,0.26]
[1641767263851,23.4157,142.25,142.17,3.26]
[1641767264055,23.4157,142.25,142.17,0.51]
[1641767264451,23.4157,142.25,142.17,0.25]
[1641767264651,23.4157,142.25,142.18,3.9835267]
[1641767265054,23.4157,142.25,142.18,4.2335267]
[1641767266052,23.4157,142.25,142.18,0.25]
[1641767266254,23.4157,142.25,142.18,0.26]
[1641767266456,23.4157,142.25,142.18,3.26]
[1641767266858,23.4157,142.25,142.18,3.51]
[1641767268260,23.4157,142.25,142.18,14.0566]
[1641767268458,23.4157,142.25,142.18,11.0566]
[1641767268858,33.9633,142.25,142.18,0.51]
[1641767269160,34.2133,142.25,142.18,0.26]
[1641767269559,34.2133,142.25,142.16,0.26]
[1641767269759,0.26,142.24,142.16,13.8075]
[1641767269960,0.26,142.24,142.16,10.8075]
[1641767270361,0.26,142.24,142.16,11.0575]
[1641767270660,0.26,142.24,142.17,3.98572829]
[1641767270960,0.26,142.24,142.18,0.26]
[1641767271359,10.8083,142.24,142.18,0.26]
[1641767272361,10.8083,142.24,142.17,0.26]
[1641767273363,22.9913,142.23,142.18,3.9865041]
[1641767273863,22.9913,142.23,142.18,4.2365041]
[1641767274464,22.9913,142.23,142.18,0.25]
[1641767275061,22.9913,142.23,142.15,3.51]
[1641767275864,33.5407,142.23,142.16,3.98844515]
[1641767276064,33.5407,142.23,142.16,4.23844515]
[1641767276464,0.26,142.22,142.16,4.23844515]
[1641767277767,0.26,142.22,142.17,3.98844515]
[1641767277967,0.26,142.22,142.17,4.23844515]
[1641767278366,0.26,142.22,142.18,3.98844515]
[1641767278967,0.26,142.22,142.18,4.23844515]
[1641767279768,0.26,142.22,142.18,0.25]
[1641767280170,0.26,142.22,142.16,0.26]
[1641767280969,0.26,142.22,142.17,3.98814486]
[1641767281371,0.26,142.22,142.17,4.23814486]
[1641767282293,0.26,142.22,142.18,3.98814486]
[1641767282496,0.26,142.22,142.18,4.23814486]
[1641767283396,0.26,142.22,142.18,0.25]
[1641767283596,0.26,142.22,142.16,0.26]
[1641767284795,0.26,142.22,142.17,3.98871039]
[1641767284996,0.26,142.22,142.17,4.23871039]
[1641767285195,0.26,142.22,142.17,3.98871039]
[1641767285395,10.8099,142.22,142.17,3.98871039]
[1641767286497,10.8099,142.22,142.16,0.26]
[1641767287100,10.8099,142.22,142.16,3.26]
[1641767287297,10.8099,142.22,142.16,0.26]
[1641767287498,22.9925,142.21,142.15,0.51]
[1641767287898,22.9925,142.21,142.15,0.26]
[1641767289301,33.5431,142.21,142.15,0.26]
[1641767290103,31.02552442,142.21,142.11,36.20378462]
[1641767290303,20.4906,142.21,142.12,0.26]
[1641767290502,20.4906,142.21,142.1,7.73126795]
[1641767290704,20.4906,142.21,142.1,5.95044209]
[1641767290705,1.758,142.2,142.1,5.95044209]
[1641767290902,10.5539,142.17,142.1,5.95044209]
[1641767291804,10.5539,142.17,142.06,5.95044209]
[1641767292307,0.26,142.16,142.07,3.0]
[1641767292504,0.26,142.16,142.07,3.25]
[1641767292704,0.26,142.16,142.08,10.5534]
[1641767293205,0.26,142.16,142.09,3.0]
[1641767293404,0.26,142.16,142.09,6.98361552]
[1641767293604,9.94,142.19,142.09,7.23361552]
[1641767293804,24.2849,142.18,142.09,17.78601552]
[1641767294005,34.2249,142.18,142.1,0.26]
[1641767294706,34.2249,142.18,142.1,3.26]
[1641767294909,34.2249,142.18,142.1,0.51]
[1641767295209,34.2249,142.18,142.11,3.0]
[1641767295407,34.2249,142.18,142.1,0.25]
[1641767295808,34.2249,142.18,142.1,10.8017]
[1641767296009,34.2249,142.18,142.11,3.26]
[1641767296409,34.2249,142.18,142.11,3.51]
[1641767296809,34.2249,142.18,142.11,3.25]
[1641767297009,0.26,142.17,142.11,0.25]
[1641767297513,0.26,142.17,142.09,3.0]
[1641767297910,0.26,142.17,142.09,3.25]
[1641767298911,10.8136,142.17,142.09,3.25]
[1641767299312,10.8136,142.17,142.09,0.25]
[1641767299512,10.8136,142.17,142.08,3.25]
[1641767300411,9.94,142.16,142.08,3.25]
[1641767300611,20.4946,142.16,142.08,5.03082586]
[1641767300813,0.26,142.15,142.08,5.03082586]
[1641767301013,9.94,142.14,142.08,5.03082586]
[1641767301212,33.2513,142.14,142.08,5.03082586]
[1641767301412,0.26,142.13,142.08,5.03082586]
[1641767302014,10.2,142.13,142.08,5.03082586]
[1641767302214,10.2,142.13,142.08,7.01650972]
[1641767304212,10.2,142.13,142.08,5.03082586]
[1641767309229,10.2,142.13,142.08,3.25]
[1641767309431,20.7567,142.13,142.08,3.25]
[1641767309832,20.7567,142.13,142.08,2.75]
[1641767310433,10.2,142.13,142.08,2.75]
[1641767311031,10.2,142.13,142.08,4.73568386]
[1641767311234,10.2,142.13,142.08,2.23568386]
[1641767311531,10.2,142.13,142.09,3.0]
[1641767311930,10.2,142.13,142.09,3.25]
[1641767314935,10.2,142.13,142.09,5.23568386]
[1641767315136,10.2,142.13,142.09,2.23568386]
[1641767315337,20.7565,142.13,142.09,2.23568386]
[1641767317540,10.2,142.13,142.09,2.23568386]
[1641767319848,10.2,142.13,142.1,1.98568386]
[1641767320452,10.2,142.13,142.1,2.23568386]
[1641767320650,10.2,142.13,142.1,0.25]
[1641767321453,10.2,142.13,142.09,2.23568386]
[1641767321851,9.94,142.13,142.09,2.23568386]
[1641767323356,0.26,142.12,142.1,1.98568386]
[1641767323571,9.94,142.12,142.1,1.98568386]
[1641767323777,9.94,142.12,142.1,2.23568386]
[1641767323977,0.26,142.11,142.1,2.23568386]
[1641767324182,10.2,142.11,142.1,2.23568386]
[1641767324579,9.94,142.11,142.1,0.25]
[1641767324980,10.2,142.11,142.09,2.23568386]
[1641767325181,0.26,142.1,142.09,2.23568386]
[1641767325380,10.2,142.1,142.09,2.23568386]
[1641767325581,10.2,142.1,142.09,8.386e-05]
[1641767325796,10.2,142.1,142.06,6.97814019]
[1641767325985,10.2,142.1,142.06,3.0]
[1641767326881,10.2,142.1,142.04,4.07814019]
[1641767327083,10.2,142.1,142.05,3.0]
[1641767327483,10.2,142.1,142.05,3.25]
[1641767327684,10.2,142.1,142.05,7.23905255]
[1641767328487,10.2,142.1,142.05,3.25]
[1641767328683,9.94,142.1,142.05,3.25]
[1641767330487,0.26,142.09,142.05,3.25]
[1641767331492,0.26,142.09,142.05,2.25]
[1641767333093,0.26,142.09,142.05,0.25]
[1641767333298,0.26,142.09,142.04,3.1]
[1641767333493,9.94,142.1,142.04,3.35]
[1641767334194,9.94,142.1,142.05,3.98676311]
[1641767334594,9.94,142.1,142.05,4.23676311]
[1641767335027,0.26,142.09,142.05,4.23676311]
[1641767335328,10.2,142.09,142.05,0.25]
[1641767335825,10.2,142.09,142.04,3.35]
[1641767338926,10.2,142.09,142.04,3.1]
[1641767339427,10.2,142.09,142.04,0.1]
[1641767345532,23.7061,142.08,142.04,0.1]
[1641767345733,9.94,142.07,142.04,0.1]
[1641767345934,10.2,142.07,142.04,0.1]
[1641767346540,3.0,142.06,142.04,0.1]
[1641767346739,12.94,142.06,142.04,0.1]
[1641767347541,9.94,142.06,142.04,0.1]
[1641767350140,0.26,142.05,142.04,0.1]
[1641767350339,10.2,142.05,142.04,0.1]
[1641767353751,20.7626,142.05,142.04,0.1]
[1641767354345,144.7426,142.05,141.96,3.97814019]
[1641767354545,29.1816,142.04,141.96,3.97814019]
[1641767354745,9.94,142.03,141.96,3.97814019]
[1641767354947,1.76,142.02,141.96,3.97814019]
[1641767355145,9.94,142.01,141.96,2.97814019]
[1641767355346,10.567,141.99,141.93,5.95044209]
[1641767355547,10.567,141.99,141.9,10.74678574]
[1641767355548,9.94,141.98,141.9,10.74678574]
[1641767355746,10.2,141.98,141.9,0.42618574]
[1641767356048,10.2,141.98,141.91,3.98286852]
[1641767356246,10.2,141.98,141.91,3.48286852]
[1641767356649,10.2,141.98,141.9,0.17618574]
[1641767357747,10.2,141.98,141.91,10.5672]
[1641767357949,10.2,141.98,141.91,10.8172]
[1641767358147,10.2,141.98,141.92,3.0]
[1641767358548,10.2,141.98,141.92,3.25]
[1641767358954,10.2,141.98,141.92,3.0]
[1641767360350,10.2,141.98,141.92,3.25]
[1641767360549,20.768,141.98,141.92,3.25]
[1641767360752,20.768,141.98,141.92,1.9]
[1641767361954,20.768,141.98,141.92,0.25]
[1641767362155,23.5895,141.97,141.92,0.25]
[1641767362356,33.5295,141.97,141.9,0.17618574]
[1641767362556,0.26,141.96,141.9,0.17618574]
[1641767362757,9.94,141.95,141.9,0.17618574]
[1641767363860,9.94,141.95,141.9,10.74428574]
[1641767364062,0.26,141.94,141.91,3.0]
[1641767364265,9.94,141.95,141.91,3.0]
[1641767364460,9.94,141.95,141.91,3.25]
[1641767364661,9.94,141.95,141.91,2.75]
[1641767365864,9.94,141.95,141.91,0.25]
[1641767366064,24.4527,141.94,141.9,0.17618574]
[1641767366464,0.26,141.93,141.9,0.17618574]
[1641767366668,24.4527,141.94,141.9,0.17618574]
[1641767366866,34.3927,141.94,141.9,0.17618574]
[1641767367064,34.3927,141.94,141.9,3.17618574]
[1641767367465,34.3927,141.94,141.9,3.42618574]
[1641767367865,9.94,141.94,141.9,3.42618574]
[1641767368067,9.94,141.94,141.9,2.42618574]
[1641767369089,0.26,141.93,141.9,2.42618574]
[1641767369292,0.26,141.93,141.91,3.03219995]
[1641767369489,9.94,141.92,141.91,6.31439991]
[1641767370188,1e-08,141.92,141.91,6.31439991]
[1641767372990,1e-08,141.92,141.91,0.25]
[1641767373190,1e-08,141.92,141.9,2.42618574]
[1641767373391,1e-08,141.92,141.91,3.03219996]
[1641767373592,1e-08,141.92,141.9,2.42618574]
[1641767375194,1e-08,141.92,141.91,3.03219996]
[1641767375392,1e-08,141.92,141.91,6.06439991]
[1641767375593,1e-08,141.92,141.91,6.31439991]
[1641767381402,1e-08,141.92,141.91,5.31439991]
[1641767382004,1e-08,141.92,141.9,2.17618574]
[1641767382205,1e-08,141.92,141.9,5.20838569]
[1641767383406,1e-08,141.92,141.9,3.03219995]
[1641767383609,1e-08,141.92,141.89,0.03791311]
[1641767384104,1e-08,141.92,141.9,5.06439991]
[1641767384516,1e-08,141.92,141.9,0.25]
[1641767385007,1.00000002,141.92,141.9,0.25]
[1641767385408,0.26,141.91,141.9,0.25]
[1641767385606,10.2,141.91,141.89,0.03791311]
[1641767385805,10.2,141.91,141.84,1.54211366]
[1641767386407,10.2,141.91,141.82,69.1517]
[1641767386806,10.2,141.91,141.85,10.5712]
[1641767387505,10.2,141.91,141.85,10.8212]
[1641767390311,9.94,141.91,141.85,10.8212]
[1641767390508,9.94,141.91,141.86,10.8307]
[1641767390909,9.94,141.91,141.86,11.0807]
[1641767391212,9.94,141.91,141.86,10.8207]
[1641767391816,0.26,141.9,141.86,10.8207]
[1641767392015,9.94,141.89,141.86,0.25]
[1641767392215,1.00000001,141.88,141.86,0.25]
[1641767392413,1.00000001,141.88,141.85,10.8219]
[1641767392817,1.00000001,141.88,141.86,5.06439991]
[1641767393017,1e-08,141.88,141.86,5.06439991]
[1641767393414,1e-08,141.88,141.86,4.56439991]
[1641767393815,1e-08,141.88,141.85,10.5719]
[1641767394216,1e-08,141.88,141.85,10.8219]
[1641767395045,1e-08,141.88,141.86,3.03219995]
[1641767395447,1e-08,141.88,141.86,3.28219995]
[1641767395853,9.94,141.89,141.86,3.03219995]
[1641767396453,0.5,141.88,141.86,3.03219995]
[1641767396652,0.76,141.88,141.86,3.03219995]
[1641767396852,0.76,141.88,141.82,23.1406]
[1641767397052,0.5,141.88,141.82,23.1406]
[1641767397454,0.5,141.88,141.82,33.9641]
[1641767397754,0.5,141.88,141.82,35.74492586]
[1641767397958,0.5,141.88,141.83,0.26]
[1641767398163,9.94,141.89,141.83,0.26]
[1641767398756,9.94,141.89,141.85,10.5719]
[1641767398956,9.94,141.89,141.85,10.8219]
[1641767399559,9.94,141.89,141.86,0.26]
[1641767399757,9.94,141.89,141.86,10.8311]
[1641767399960,9.94,141.89,141.87,5.56439991]
[1641767400159,10.44,141.89,141.87,5.56439991]
[1641767400362,10.44,141.89,141.87,0.25]
[1641767400960,10.44,141.89,141.84,10.8219]
[1641767401360,10.44,141.89,141.84,10.5719]
[1641767401762,0.26,141.88,141.84,10.5719]
[1641767402563,9.94,141.89,141.84,10.5719]
[1641767402763,9.94,141.89,141.84,10.8219]
[1641767404264,9.94,141.89,141.84,0.25]
[1641767404462,9.94,141.89,141.82,10.8237]
[1641767404962,9.94,141.89,141.82,10.5737]
[1641767405164,0.26,141.88,141.82,10.5737]
[1641767405362,9.94,141.87,141.82,10.5737]
[1641767405562,0.26,141.86,141.82,10.5737]
[1641767405765,9.94,141.87,141.82,10.5737]
[1641767405962,0.26,141.86,141.82,10.5737]
[1641767406392,9.94,141.87,141.82,10.8237]
[1641767408294,0.26,141.86,141.82,10.3237]
[1641767409898,9.94,141.86,141.82,10.3237]
[1641767410795,9.94,141.86,141.82,10.0737]
[1641767411394,9.94,141.86,141.8,0.1]
[1641767412895,0.26,141.85,141.8,10.6755]
[1641767413397,0.26,141.85,141.8,10.9255]
[1641767413797,9.94,141.86,141.8,10.9255]
[1641767413997,9.94,141.86,141.8,0.35]
[1641767414600,9.94,141.86,141.8,0.1]
[1641767414802,24.1963,141.85,141.8,0.1]
[1641767415002,24.4563,141.85,141.8,0.1]
[1641767415604,9.94,141.84,141.8,0.1]
[1641767417005,0.26,141.83,141.8,0.1]
[1641767417204,0.26,141.83,141.81,3.03219995]
[1641767417407,0.26,141.83,141.8,0.1]
[1641767417805,0.26,141.83,141.81,2.53219996]
[1641767418105,9.94,141.84,141.81,2.78219996]
[1641767418510,9.94,141.84,141.82,3.0]
[1641767418907,9.94,141.84,141.81,2.78219996]
[1641767418908,0.5,141.83,141.8,0.1]
[1641767419308,0.76,141.83,141.8,0.1]
[1641767419509,9.94,141.82,141.8,0.1]
[1641767419911,0.26,141.81,141.75,0.21923471]
[1641767420513,13.2,141.81,141.75,0.21923471]
[1641767420913,10.2,141.81,141.75,10.79793471]
[1641767421315,10.2,141.81,141.75,11.04793471]
[1641767421512,3.0,141.8,141.75,11.04793471]
[1641767421713,12.94,141.8,141.75,11.04793471]
[1641767421920,0.26,141.79,141.75,11.04793471]
[1641767422415,3.26,141.79,141.75,11.04793471]
[1641767422813,3.0,141.79,141.75,11.04793471]
[1641767423617,0.26,141.78,141.76,1.78082586]
[1641767423816,3.0,141.79,141.76,1.78082586]
[1641767424117,0.26,141.79,141.75,0.21923471]
[1641767424318,0.5,141.78,141.75,0.21923471]
[1641767424615,10.44,141.78,141.75,0.21923471]
[1641767425042,0.26,141.77,141.75,0.21923471]
[1641767425642,0.5,141.76,141.75,0.21923471]
[1641767428951,10.7,141.76,141.75,0.21923471]
[1641767429346,13.7,141.76,141.75,0.21923471]
[1641767430849,13.44,141.76,141.75,0.21923471]
[1641767431046,13.7,141.76,141.75,0.21923471]
[1641767432148,13.7,141.76,141.7,13.5823]
[1641767432348,3.26,141.75,141.7,3.0]
[1641767432548,10.2,141.75,141.69,12.36452586]
[1641767433148,10.2,141.75,141.65,0.21923471]
[1641767433348,10.2,141.75,141.68,3.0]
[1641767433548,20.7849,141.75,141.68,3.0]
[1641767434047,20.7849,141.75,141.68,1.78082586]
[1641767434251,23.9292,141.74,141.68,1.78082586]
[1641767434448,10.2,141.73,141.69,3.0]
[1641767434648,20.7864,141.73,141.65,2.00006057]
[1641767434848,22.8748,141.72,141.65,2.00006057]
[1641767435052,10.2,141.71,141.66,3.0]
[1641767435651,10.2,141.71,141.66,0.25]
[1641767435950,10.2,141.71,141.65,5.25006057]
[1641767437151,10.2,141.71,141.65,5.00006057]
[1641767439152,20.788,141.71,141.65,5.00006057]
[1641767440354,20.788,141.71,141.65,2.00006057]
[1641767441553,20.788,141.71,141.65,2.25006057]
[1641767442455,20.788,141.71,141.65,0.46923471]
[1641767442654,10.5904,141.69,141.65,0.46923471]
[1641767442856,9.94,141.68,141.65,0.21923471]
[1641767443155,10.2,141.68,141.65,0.21923471]
[1641767443355,0.5,141.67,141.65,0.21923471]
[1641767443656,10.44,141.67,141.65,0.21923471]
[1641767443955,0.26,141.66,141.65,0.21923471]
[1641767444358,10.2,141.66,141.65,0.21923471]
[1641767457168,9.94,141.66,141.65,0.21923471]
[1641767457369,9.94,141.66,141.63,2.23314757]
[1641767457370,9.94,141.66,141.63,1.45238228]
[1641767457572,24.3189,141.68,141.64,3.03219995]
[1641767457775,9.94,141.67,141.64,3.03219995]
[1641767457969,9.94,141.67,141.61,10.5897]
[1641767458598,0.26,141.66,141.61,10.5897]
[1641767458799,10.2,141.66,141.61,10.5897]
[1641767458998,10.2,141.66,141.61,10.8397]
[1641767459198,10.2,141.66,141.62,1.78082586]
[1641767459598,10.2,141.66,141.62,2.03082586]
[1641767460500,10.2,141.66,141.63,3.98183034]
[1641767460702,10.2,141.66,141.64,5.56439991]
[1641767460900,10.2,141.66,141.63,3.98183034]
[1641767461106,0.5,141.65,141.63,3.98183034]
[1641767461904,0.5,141.65,141.61,3.98183034]
[1641767462305,0.5,141.65,141.61,4.23183034]
[1641767462506,0.5,141.65,141.61,8.20150173]
[1641767462811,0.5,141.65,141.61,7.95150173]
[1641767463006,0.5,141.65,141.61,8.20150173]
[1641767463309,0.5,141.65,141.62,3.98183034]
[1641767464607,0.5,141.65,141.62,3.48183034]
[1641767465008,0.5,141.65,141.61,4.21967139]
[1641767465209,0.5,141.65,141.62,3.96967139]
[1641767466108,10.2,141.66,141.63,2.53219996]
[1641767466309,10.2,141.66,141.63,3.03219995]
[1641767466512,10.2,141.66,141.61,4.21967139]
[1641767466712,10.2,141.66,141.6,10.79632959]
[1641767468217,10.2,141.66,141.6,11.04632959]
[1641767469848,10.2,141.66,141.6,16.9957723]
[1641767470050,9.94,141.66,141.6,16.9957723]
[1641767471651,9.94,141.66,141.64,0.55813876]
[1641767472251,10.44,141.66,141.64,0.55813876]
[1641767473255,10.44,141.66,141.64,0.05813876]
[1641767474754,10.44,141.66,141.65,5.56439991]
[1641767474957,10.2,141.66,141.65,2.53219996]
[1641767475356,10.7,141.66,141.64,0.05813876]
[1641767477160,10.44,141.66,141.64,0.05813876]
[1641767477564,10.44,141.66,141.64,2.59033872]
[1641767477965,9.94,141.66,141.64,2.84033872]